fUSD/lending_fUSD_20250826
["ID","MTS","AMOUNT","RATE_DAILY","PERIOD"]
[381393830,1756185056836,-205.446366,0.00013699,2]
[381393831,1756185056845,-151.0,0.00013699,2]
[381393832,1756185056854,-151.0,0.00013699,2]
[381393833,1756185056864,-151.0,0.00013699,2]
[381393834,1756185056873,-151.0,0.00013699,2]
[381393835,1756185056883,-151.0,0.00013699,2]
[381393836,1756185056892,-151.0,0.00013699,2]
[381393837,1756185056901,-151.0,0.00013699,2]
[381393838,1756185056910,-151.0,0.00013699,2]
[381393839,1756185056920,-151.0,0.00013699,2]
[381393840,1756185056929,-151.0,0.00013699,2]
[381393841,1756185056939,-190.145255,0.00013699,2]
[381393842,1756185056948,-151.0,0.00013699,2]
[381393843,1756185056957,-151.0,0.00013699,2]
[381393844,1756185056967,-151.0,0.00013699,2]
[381393845,1756185056976,-151.0,0.00013699,2]
[381393846,1756185056985,-151.0,0.00013699,2]
[381393847,1756185056994,-151.0,0.00013699,2]
[381393848,1756185057003,-153.687016,0.00013699,2]
[381393849,1756185057013,-281.644923,0.00013699,2]
[381393850,1756185057023,-281.644923,0.00013699,2]
[381393851,1756185057033,-281.644923,0.00013699,2]
[381393852,1756185057044,-281.644923,0.00013699,2]
[381393853,1756185057054,-281.644923,0.00013699,2]
[381393854,1756185057065,-281.644923,0.00013699,2]
[381393855,1756185057074,-281.644923,0.00013699,2]
[381393856,1756185057083,-281.644923,0.00013699,2]
[381393857,1756185057092,-281.644923,0.00013699,2]
[381393858,1756185057102,-281.644923,0.00013699,2]
[381393859,1756185057111,-281.644923,0.00013699,2]
[381393860,1756185057120,-281.644923,0.00013699,2]
[381393861,1756185057130,-281.644923,0.00013699,2]
[381393862,1756185057139,-281.644923,0.00013699,2]
[381393863,1756185057148,-281.644923,0.00013699,2]
[381393864,1756185057158,-281.644923,0.00013699,2]
[381393865,1756185057169,-281.644923,0.00013699,2]
[381393866,1756185057178,-281.644923,0.00013699,2]
[381393867,1756185057187,-281.644923,0.00013699,2]
[381393868,1756185057197,-281.644922,0.00013699,2]
[381393869,1756185057207,-500.0,0.00013699,2]
[381393870,1756185057217,-500.0,0.00013699,2]
[381393871,1756185057226,-500.0,0.00013699,2]
[381393872,1756185057236,-522.35770442,0.00013699,2]
[381393873,1756185057246,-500.0,0.00013699,2]
[381393874,1756185057256,-276.25912775,0.00013699,2]
[381393875,1756185057265,-503.75114274,0.00013699,2]
[381393876,1756185057275,-500.0,0.00013699,2]
[381393877,1756185057284,-500.0,0.00013699,2]
[381393878,1756185057293,-300.2994,0.00013699,2]
[381393879,1756185057302,-154.0,0.00013699,2]
[381393880,1756185057311,-29999.99,0.00013699,2]
[381393881,1756185057321,-16138.34,0.00013699,2]
[381393882,1756185057330,-151.0,0.00013699,2]
[381393883,1756185057339,-151.0,0.00013699,2]
[381393884,1756185057348,-151.0,0.00013699,2]
[381393885,1756185057357,-151.0,0.00013699,2]
[381393886,1756185057367,-151.0,0.00013699,2]
[381393887,1756185057376,-151.0,0.00013699,2]
[381393888,1756185057386,-151.0,0.00013699,2]
[381393889,1756185057395,-151.0,0.00013699,2]
[381393890,1756185057404,-151.0,0.00013699,2]
[381393891,1756185057413,-151.0,0.00013699,2]
[381393892,1756185057423,-151.0,0.00013699,2]
[381393893,1756185057432,-151.0,0.00013699,2]
[381393894,1756185057441,-151.0,0.00013699,2]
[381393895,1756185057450,-151.0,0.00013699,2]
[381393896,1756185057459,-151.0,0.00013699,2]
[381393897,1756185057469,-151.0,0.00013699,2]
[381393898,1756185057478,-151.0,0.00013699,2]
[381393899,1756185057488,-151.0,0.00013699,2]
[381393900,1756185057497,-151.0,0.00013699,2]
[381393901,1756185057507,-151.0,0.00013699,2]
[381393902,1756185057516,-151.0,0.00013699,2]
[381393903,1756185057525,-151.0,0.00013699,2]
[381393904,1756185057534,-151.0,0.00013699,2]
[381393905,1756185057544,-151.0,0.00013699,2]
[381393906,1756185057552,-151.0,0.00013699,2]
[381393907,1756185057562,-151.0,0.00013699,2]
[381393908,1756185057573,-151.0,0.00013699,2]
[381393909,1756185057583,-151.524429,0.00013699,2]
[381393910,1756185057592,-151.483642,0.00013699,2]
[381393911,1756185057602,-151.0,0.00013699,2]
[381393912,1756185057612,-151.0,0.00013699,2]
[381393913,1756185057621,-151.0,0.00013699,2]
[381393914,1756185057631,-151.0,0.00013699,2]
[381393915,1756185057642,-151.0,0.00013699,2]
[381393916,1756185057651,-151.0,0.00013699,2]
[381393917,1756185057661,-151.0,0.00013699,2]
[381393918,1756185057670,-151.0,0.00013699,2]
[381393919,1756185057680,-151.713205,0.00013699,2]
[381393920,1756185057689,-151.0,0.00013699,2]
[381393921,1756185057703,-151.0,0.00013699,2]
[381393922,1756185057712,-151.0,0.00013699,2]
[381393923,1756185057720,-151.0,0.00013699,2]
[381393924,1756185057729,-151.0,0.00013699,2]
[381393925,1756185057740,-151.0,0.00013699,2]
[381393926,1756185057749,-151.0,0.00013699,2]
[381393927,1756185057758,-151.0,0.00013699,2]
[381393928,1756185057767,-151.0,0.00013699,2]
[381393929,1756185057776,-151.0,0.00013699,2]
[381393930,1756185057785,-151.453786,0.00013699,2]
[381393931,1756185057794,-151.0,0.00013699,2]
[381393932,1756185057803,-151.0,0.00013699,2]
[381393933,1756185057811,-151.0,0.00013699,2]
[381393934,1756185057820,-151.0,0.00013699,2]
[381393935,1756185057829,-151.0,0.00013699,2]
[381393936,1756185057838,-151.0,0.00013699,2]
[381393937,1756185057847,-151.0,0.00013699,2]
[381393938,1756185057855,-511.665686,0.00013699,2]
[381393939,1756185057865,-404.497572,0.00013699,2]
[381393940,1756185057874,-404.497572,0.00013699,2]
[381393941,1756185057883,-404.497572,0.00013699,2]
[381393942,1756185057892,-404.497572,0.00013699,2]
[381393943,1756185057901,-511.665686,0.00013699,2]
[381393944,1756185057910,-511.665686,0.00013699,2]
[381393945,1756185057920,-511.665686,0.00013699,2]
[381393946,1756185057929,-151.0,0.00013699,2]
[381393947,1756185057939,-151.0,0.00013699,2]
[381393948,1756185057948,-280.421757,0.00013699,2]
[381393949,1756185057957,-151.0,0.00013699,2]
[381393950,1756185057966,-151.0,0.00013699,2]
[381393951,1756185057975,-151.0,0.00013699,2]
[381393952,1756185057984,-151.0,0.00013699,2]
[381393953,1756185057993,-151.931186,0.00013699,2]
[381393954,1756185058002,-151.0,0.00013699,2]
[381393955,1756185058011,-205.191529,0.00013699,2]
[381393956,1756185058021,-151.0,0.00013699,2]
[381393957,1756185058031,-151.0,0.00013699,2]
[381393958,1756185058041,-151.0,0.00013699,2]
[381393959,1756185058051,-793.027712,0.00013699,2]
[381393960,1756185058061,-793.027712,0.00013699,2]
[381393961,1756185058070,-793.027712,0.00013699,2]
[381393962,1756185058079,-793.027712,0.00013699,2]
[381393963,1756185058089,-151.0,0.00013699,2]
[381393964,1756185058099,-264.06199,0.00013699,2]
[381393965,1756185058108,-151.0,0.00013699,2]
[381393966,1756185058117,-151.0,0.00013699,2]
[381393967,1756185058127,-212.535931,0.00013699,2]
[381393968,1756185058136,-212.535931,0.00013699,2]
[381393969,1756185058145,-212.535931,0.00013699,2]
[381393970,1756185058154,-212.535931,0.00013699,2]
[381393971,1756185058164,-151.0,0.00013699,2]
[381393972,1756185058173,-151.0,0.00013699,2]
[381393973,1756185058183,-151.0,0.00013699,2]
[381393974,1756185058191,-151.0,0.00013699,2]
[381393975,1756185058201,-400.814277,0.00013699,2]
[381393976,1756185058211,-400.814277,0.00013699,2]
[381393977,1756185058220,-400.814277,0.00013699,2]
[381393978,1756185058229,-162.683279,0.00013699,2]
[381393979,1756185058238,-400.814277,0.00013699,2]
[381393980,1756185058248,-162.683279,0.00013699,2]
[381393981,1756185058257,-162.683279,0.00013699,2]
[381393982,1756185058266,-162.683279,0.00013699,2]
[381393983,1756185058275,-151.0,0.00013699,2]
[381393984,1756185058285,-151.0,0.00013699,2]
[381393985,1756185058294,-155.356089,0.00013699,2]
[381393986,1756185058303,-287.706716,0.00013699,2]
[381393987,1756185058312,-151.0,0.00013699,2]
[381393988,1756185058321,-151.0,0.00013699,2]
[381393989,1756185058331,-151.0,0.00013699,2]
[381393990,1756185058340,-151.0,0.00013699,2]
[381393991,1756185058349,-151.0,0.00013699,2]
[381393992,1756185058358,-151.0,0.00013699,2]
[381393993,1756185058368,-285.620675,0.00013699,2]
[381393994,1756185058377,-399.17991,0.00013699,2]
[381393995,1756185058386,-399.17991,0.00013699,2]
[381393996,1756185058396,-399.17991,0.00013699,2]
[381393997,1756185058405,-399.17991,0.00013699,2]
[381393998,1756185058414,-399.17991,0.00013699,2]
[381393999,1756185058424,-399.17991,0.00013699,2]
[381394000,1756185058433,-399.17991,0.00013699,2]
[381394001,1756185058442,-399.179918,0.00013699,2]
[381394002,1756185058451,-151.0,0.00013699,2]
[381394003,1756185058461,-151.0,0.00013699,2]
[381394004,1756185058470,-193.345787,0.00013699,2]
[381394005,1756185058479,-151.0,0.00013699,2]
[381394006,1756185058489,-151.0,0.00013699,2]
[381394007,1756185058499,-151.0,0.00013699,2]
[381394008,1756185058509,-151.0,0.00013699,2]
[381394009,1756185058518,-151.0,0.00013699,2]
[381394010,1756185058527,-151.0,0.00013699,2]
[381394011,1756185058536,-151.0,0.00013699,2]
[381394012,1756185058545,-151.0,0.00013699,2]
[381394013,1756185058555,-151.0,0.00013699,2]
[381394014,1756185058564,-151.0,0.00013699,2]
[381394015,1756185058573,-151.0,0.00013699,2]
[381394016,1756185058582,-216.911488,0.00013699,2]
[381394017,1756185058591,-216.911488,0.00013699,2]
[381394018,1756185058600,-379.419613,0.00013699,2]
[381394019,1756185058609,-151.0,0.00013699,2]
[381394020,1756185058619,-379.419613,0.00013699,2]
[381394021,1756185058628,-216.911488,0.00013699,2]
[381394022,1756185058636,-216.911494,0.00013699,2]
[381394023,1756185058646,-379.419609,0.00013699,2]
[381394024,1756185058656,-202.99267,0.00013699,2]
[381394025,1756185058667,-151.0,0.00013699,2]
[381394026,1756185058676,-202.99267,0.00013699,2]
[381394027,1756185058687,-151.0,0.00013699,2]
[381394028,1756185058706,-202.99267,0.00013699,2]
[381394029,1756185058727,-202.992663,0.00013699,2]
[381394030,1756185058747,-241.688135,0.00013699,2]
[381394031,1756185058768,-1088.82,0.000137,2]
[381394032,1756185058786,-1088.82,0.000137,2]
[381394033,1756185058796,-1088.82,0.000137,2]
[381394034,1756185058805,-1088.82,0.000137,2]
[381394035,1756185058814,-1088.82,0.000137,2]
[381394036,1756185058823,-500.0,0.00013733,2]
[381394037,1756185058833,-500.0,0.00013733,2]
[381394038,1756185058842,-500.0,0.00013733,2]
[381394039,1756185058851,-500.0,0.00013733,2]
[381394040,1756185058861,-500.0,0.00013733,2]
[381394041,1756185058870,-151.0,0.00013738,2]
[381394042,1756185058879,-167.491811,0.00013738,2]
[381394043,1756185058889,-151.227893,0.00013738,2]
[381394044,1756185058899,-151.0,0.00013738,2]
[381394045,1756185058910,-151.0,0.00013738,2]
[381394046,1756185058921,-151.0,0.00013738,2]
[381394047,1756185058930,-282.267571,0.00013738,2]
[381394048,1756185058940,-151.0,0.00013738,2]
[381394049,1756185058949,-151.0,0.00013738,2]
[381394050,1756185058960,-151.0,0.00013738,2]
[381394051,1756185058969,-151.0,0.00013738,2]
[381394052,1756185058979,-151.0,0.00013738,2]
[381394053,1756185058989,-152.489207,0.00013738,2]
[381394054,1756185058998,-151.0,0.00013738,2]
[381394055,1756185059007,-151.0,0.00013738,2]
[381394056,1756185059016,-151.0,0.00013738,2]
[381394057,1756185059025,-151.0,0.00013738,2]
[381394058,1756185059034,-151.0,0.00013738,2]
[381394059,1756185059043,-153.865655,0.00013738,2]
[381394060,1756185059053,-151.513456,0.00013738,2]
[381394061,1756185059062,-151.0,0.00013738,2]
[381394062,1756185059072,-151.0,0.00013738,2]
[381394063,1756185059083,-151.0,0.00013738,2]
[381394064,1756185059092,-400.814277,0.00013738,2]
[381394065,1756185059101,-400.814277,0.00013738,2]
[381394066,1756185059110,-400.814277,0.00013738,2]
[381394067,1756185059120,-162.683279,0.00013738,2]
[381394068,1756185059130,-400.814276,0.00013738,2]
[381394069,1756185059139,-162.683279,0.00013738,2]
[381394070,1756185059148,-162.683279,0.00013738,2]
[381394071,1756185059157,-162.683283,0.00013738,2]
[381394072,1756185059167,-151.0,0.00013738,2]
[381394073,1756185059177,-151.0,0.00013738,2]
[381394074,1756185059187,-500.0,0.0001375,2]
[381394075,1756185059197,-500.0,0.0001375,2]
[381394076,1756185059207,-500.23610789,0.0001375,2]
[381394077,1756185059217,-500.0,0.0001375,2]
[381394078,1756185059226,-563.54231776,0.0001375,2]
[381394079,1756185059235,-500.0,0.0001375,2]
[381394080,1756185059245,-528.57640829,0.0001375,2]
[381394081,1756185059255,-500.11651083,0.0001375,2]
[381394082,1756185059264,-500.0,0.0001375,2]
[381394083,1756185059273,-500.0,0.0001375,2]
[381394084,1756185059282,-500.0,0.0001375,2]
[381394085,1756185059292,-500.0,0.0001375,2]
[381394086,1756185059301,-500.0,0.0001375,2]
[381394087,1756185059311,-500.09707482,0.0001375,2]
[381394088,1756185059320,-308.89739518,0.0001375,2]
[381394089,1756185059329,-500.0,0.0001375,2]
[381394090,1756185059338,-500.0,0.0001375,2]
[381394091,1756185059347,-500.0,0.0001375,2]
[381394092,1756185059356,-500.0,0.0001375,2]
[381394093,1756185059365,-500.0,0.0001375,2]
[381394094,1756185059374,-164.23268451,0.0001375,2]
[381394095,1756185059383,-500.0,0.0001375,2]
[381394096,1756185059392,-500.0,0.0001375,2]
[381394097,1756185059401,-500.0,0.0001375,2]
[381394098,1756185059411,-500.0,0.0001375,2]
[381394099,1756185059420,-167.26669528,0.0001375,2]
[381394100,1756185059429,-500.11200323,0.0001375,2]
[381394101,1756185059438,-161.88879398,0.0001375,2]
[381394102,1756185059447,-500.0,0.00013762,2]
[381394103,1756185059456,-573.0,0.00013762,2]
[381394104,1756185059465,-150.21340694,0.000138,5]
[381394105,1756185059475,-8029.78,0.000138,2]
[381394106,1756185059484,-15228.12,0.000138,2]
[381394107,1756185059494,-151.0,0.000138,2]
[381394108,1756185059503,-151.0,0.000138,2]
[381394109,1756185059512,-301.126488,0.000138,2]
[381394110,1756185059521,-151.770442,0.000138,2]
[381394111,1756185059531,-151.0,0.000138,2]
[381394112,1756185059540,-151.0,0.000138,2]
[381394113,1756185059549,-152.174241,0.000138,2]
[381394114,1756185059558,-151.0,0.000138,2]
[381394115,1756185059567,-151.0,0.000138,2]
[381394116,1756185059576,-151.0,0.000138,2]
[381394117,1756185059586,-511.665686,0.000138,2]
[381394118,1756185059595,-404.497572,0.000138,2]
[381394119,1756185059604,-404.497572,0.000138,2]
[381394120,1756185059613,-404.497572,0.000138,2]
[381394121,1756185059623,-404.497572,0.000138,2]
[381394122,1756185059632,-511.665686,0.000138,2]
[381394123,1756185059641,-511.665686,0.000138,2]
[381394124,1756185059651,-511.665686,0.000138,2]
[381394125,1756185059659,-151.0,0.000138,2]
[381394126,1756185059668,-151.0,0.000138,2]
[381394127,1756185059677,-151.0,0.000138,2]
[381394128,1756185059687,-151.0,0.000138,2]
[381394129,1756185059700,-151.0,0.000138,2]
[381394130,1756185059709,-151.0,0.000138,2]
[381394131,1756185059718,-151.0,0.000138,2]
[381394132,1756185059727,-151.0,0.000138,2]
[381394133,1756185059738,-151.0,0.000138,2]
[381394134,1756185059747,-793.027712,0.000138,2]
[381394135,1756185059756,-793.027712,0.000138,2]
[381394136,1756185059766,-793.027712,0.000138,2]
[381394137,1756185059776,-793.027712,0.000138,2]
[381394138,1756185059786,-151.0,0.000138,2]
[381394139,1756185059795,-151.0,0.000138,2]
[381394140,1756185059804,-154.59072,0.000138,2]
[381394141,1756185059814,-212.535931,0.000138,2]
[381394142,1756185059823,-212.535931,0.000138,2]
[381394143,1756185059832,-212.535931,0.000138,2]
[381394144,1756185059841,-212.535931,0.000138,2]
[381394145,1756185059850,-151.0,0.000138,2]
[381394146,1756185059859,-156.082656,0.000138,2]
[381394147,1756185059868,-500.0,0.00013811,2]
[381394148,1756185059877,-2315.0,0.00013811,2]
[381394149,1756185059887,-500.0,0.00013811,2]
[381394150,1756185059896,-275.31885085,0.00013817,2]
[381394151,1756185059906,-500.0,0.00013817,2]
[381394152,1756185059915,-184.73,0.00013838,2]
[381394153,1756185059924,-1520.2289672,0.00013854,2]
[381394154,1756185059933,-151.751254,0.00013855,2]
[381394155,1756185059942,-151.237313,0.00013855,2]
[381394156,1756185059951,-151.0,0.00013855,2]
[381394157,1756185059961,-151.0,0.00013855,2]
[381394158,1756185059970,-151.0,0.00013855,2]
[381394159,1756185059980,-151.0,0.00013855,2]
[381394160,1756185059990,-151.0,0.00013855,2]
[381394161,1756185059999,-151.0,0.00013855,2]
[381394162,1756185060008,-151.0,0.00013855,2]
[381394163,1756185060018,-180.83917195,0.00013855,2]
[381394164,1756185060027,-151.90966026,0.000139,2]
[381394165,1756185060037,-151.90966021,0.000139,2]
[381394166,1756185060047,-151.90966021,0.000139,2]
[381394167,1756185060056,-151.90966021,0.000139,2]
[381394168,1756185060066,-151.90966021,0.000139,2]
[381394169,1756185060076,-151.90966021,0.000139,2]
[381394170,1756185060085,-817.18,0.00013952,2]
[381394171,1756185060095,-408.59,0.00013952,2]
[381394172,1756185060105,-166.02,0.00013952,2]
[381394173,1756185060114,-408.59,0.00013955,2]
[381394174,1756185060123,-151.0,0.00013958,2]
[381394175,1756185060133,-151.0,0.00013958,2]
[381394176,1756185060142,-151.0,0.00013958,2]
[381394177,1756185060152,-151.0,0.00013958,2]
[381394178,1756185060161,-793.027712,0.00013958,2]
[381394179,1756185060171,-793.027712,0.00013958,2]
[381394180,1756185060180,-793.027712,0.00013958,2]
[381394181,1756185060190,-793.027708,0.00013958,2]
[381394182,1756185060200,-151.0,0.0001397,2]
[381394183,1756185060209,-151.0,0.0001397,2]
[381394184,1756185060219,-151.0,0.0001397,2]
[381394185,1756185060228,-151.0,0.0001397,2]
[381394186,1756185060238,-151.0,0.0001397,2]
[381394187,1756185060247,-151.0,0.0001397,2]
[381394188,1756185060257,-151.253187,0.0001397,2]
[381394189,1756185060266,-151.0,0.0001397,2]
[381394190,1756185060275,-165.718375,0.0001397,2]
[381394191,1756185060285,-151.0,0.0001397,2]
[381394192,1756185060294,-151.0,0.0001397,2]
[381394193,1756185060304,-151.0,0.0001397,2]
[381394194,1756185060313,-151.0,0.0001397,2]
[381394195,1756185060323,-151.0,0.0001397,2]
[381394196,1756185060332,-151.0,0.0001397,2]
[381394197,1756185060341,-151.0,0.0001397,2]
[381394198,1756185060351,-151.605412,0.0001397,2]
[381394199,1756185060360,-151.0,0.0001397,2]
[381394200,1756185060370,-151.0,0.0001397,2]
[381394201,1756185060379,-151.0,0.0001397,2]
[381394202,1756185060389,-151.0,0.0001397,2]
[381394203,1756185060398,-151.0,0.0001397,2]
[381394204,1756185060408,-151.0,0.0001397,2]
[381394205,1756185060418,-151.949429,0.0001397,2]
[381394206,1756185060428,-151.0,0.0001397,2]
[381394207,1756185060437,-152.332706,0.0001397,2]
[381394208,1756185060446,-151.0,0.0001397,2]
[381394209,1756185060456,-500.0,0.00014036,2]
[381394210,1756185060466,-573.0,0.00014036,2]
[381394211,1756185060476,-433.0,0.0001404,2]
[381394212,1756185060487,-500.0,0.00014085,2]
[381394213,1756185060497,-2315.0,0.00014085,2]
[381394214,1756185060506,-500.0,0.00014085,2]
[381394215,1756185060515,-500.0,0.00014091,2]
[381394216,1756185060525,-465.09,0.0001411,2]
[381394217,1756185060538,-375.0,0.0001415,2]
[381394218,1756185060548,-587.0,0.00014157,2]
[381394219,1756185060559,-153.27828578,0.00014164,2]
[381394220,1756185060569,-2500.0,0.00014164,2]
[381394221,1756185060579,-380.37735152,0.00014175,2]
[381394222,1756185060588,-2351.0,0.00014183,2]
[381394223,1756185060599,-619.79782947,0.00014233,2]
[381394224,1756185060608,-500.54614658,0.00014247,2]
[381394225,1756185060618,-1000.0,0.00014247,2]
[381394226,1756185060629,-501.90964086,0.00014247,2]
[381394227,1756185060640,-1000.0,0.00014247,2]
[381394228,1756185060650,-1000.0,0.00014247,2]
[381394229,1756185060660,-1000.0,0.00014247,2]
[381394230,1756185060669,-1000.0,0.00014281,2]
[381394231,1756185060678,-427.0969966,0.00014281,2]
[381394232,1756185060688,-460.2017041,0.00014281,2]
[381394233,1756185060700,-220.96035242,0.00014281,2]
[381394234,1756185060710,-1000.0,0.00014281,2]
[381394235,1756185060719,-1000.0,0.00014298,2]
[381394236,1756185060728,-1000.0,0.00014298,2]
[381394237,1756185060740,-1000.0,0.00014298,2]
[381394238,1756185060750,-1000.0,0.00014298,2]
[381394239,1756185060759,-646.33270953,0.00014298,2]
[381394240,1756185060768,-1000.0,0.00014298,2]
[381394241,1756185060778,-1000.0,0.00014298,2]
[381394242,1756185060914,-1000.0,0.00014298,2]
[381394243,1756185060933,-1000.0,0.00014298,2]
[381394244,1756185060943,-1000.0,0.00014298,2]
[381394245,1756185060952,-1000.0,0.00014298,2]
[381394246,1756185060962,-1000.0,0.00014298,2]
[381394247,1756185060972,-1000.0,0.00014298,2]
[381394248,1756185060981,-1000.0,0.00014298,2]
[381394249,1756185060994,-1000.0,0.00014298,2]
[381394250,1756185061004,-640.15524874,0.00014298,2]
[381394251,1756185061014,-1000.0,0.00014298,2]
[381394252,1756185061023,-400.40264423,0.00014298,2]
[381394253,1756185061033,-500.0,0.0001431,2]
[381394254,1756185061043,-573.0,0.0001431,2]
[381394255,1756185061053,-208.70110946,0.00014343,2]
[381394256,1756185061064,-211.04233107,0.0001435,2]
[381394257,1756185061074,-500.0,0.00014359,2]
[381394258,1756185061083,-2315.0,0.00014359,2]
[381394259,1756185061093,-500.0,0.00014359,2]
[381394260,1756185061103,-500.0,0.00014365,2]
[381394261,1756185061112,-469.3,0.00014384,2]
[381394262,1756185061122,-469.3,0.00014384,2]
[381394263,1756185061131,-938.26,0.00014384,2]
[381394264,1756185061140,-555.69,0.00014384,2]
[381394265,1756185061150,-151.0,0.00014504,2]
[381394266,1756185061160,-151.0,0.00014504,2]
[381394267,1756185061170,-151.0,0.00014504,2]
[381394268,1756185061179,-266.513929,0.00014504,2]
[381394269,1756185061189,-151.0,0.00014504,2]
[381394270,1756185061199,-151.0,0.00014504,2]
[381394271,1756185061208,-156.046844,0.00014504,2]
[381394272,1756185061217,-151.0,0.00014504,2]
[381394273,1756185061227,-404.497572,0.00014504,2]
[381394274,1756185061236,-404.497572,0.00014504,2]
[381394275,1756185061247,-404.497572,0.00014504,2]
[381394276,1756185061256,-511.665686,0.00014504,2]
[381394277,1756185061265,-404.497564,0.00014504,2]
[381394278,1756185061275,-511.665686,0.00014504,2]
[381394279,1756185061285,-511.665686,0.00014504,2]
[381394280,1756185061294,-511.665688,0.00014504,2]
[381394281,1756185061303,-152.35223,0.00014504,2]
[381394282,1756185061312,-151.0,0.00014504,2]
[381394283,1756185061322,-151.0,0.00014504,2]
[381394284,1756185061331,-151.0,0.00014504,2]
[381394285,1756185061341,-851.0,0.00014556,2]
[381394286,1756185061351,-500.0,0.00014567,2]
[381394287,1756185061360,-500.0,0.00014584,2]
[381394288,1756185061370,-573.0,0.00014584,2]
[381394289,1756185061379,-157.5349002,0.00014633,2]
[381394290,1756185061389,-2315.0,0.00014633,2]
[381394291,1756185061398,-500.0,0.00014633,2]
[381394292,1756185061408,-518.61294035,0.00014639,2]
[381394293,1756185061418,-500.0,0.00014683,2]
[381394294,1756185061427,-500.0,0.00014683,2]
[381394295,1756185061437,-500.0,0.00014683,2]
[381394296,1756185061447,-500.0,0.00014683,2]
[381394297,1756185061456,-184.73,0.00014708,2]
[381394298,1756185061466,-1582.39901521,0.00014712,2]
[381394299,1756185061475,-150.0,0.00014762,2]
[381394300,1756185061485,-155.08,0.00014762,2]
[381394301,1756185061495,-2409.44,0.00014762,2]
[381394302,1756185061506,-539.5,0.00014762,2]
[381394303,1756185061515,-816.96,0.00014762,2]
[381394304,1756185061525,-347.1,0.00014762,2]
[381394305,1756185061534,-380.37735152,0.00014772,2]
[381394306,1756185061545,-267.46074303,0.00014793,2]
[381394307,1756185061555,-695.39793187,0.00014793,2]
[381394308,1756185061565,-322.6107,0.00014793,2]
[381394309,1756185061575,-250.0,0.00014793,2]
[381394310,1756185061585,-250.0,0.00014793,2]
[381394311,1756185061595,-152.56977486,0.00014793,2]
[381394312,1756185061606,-1000.0,0.00014793,2]
[381394313,1756185061616,-2524.82941417,0.00014793,2]
[381394314,1756185061625,-1000.0,0.00014793,2]
[381394315,1756185061634,-1000.0,0.00014793,2]
[381394316,1756185061644,-1000.0,0.00014793,2]
[381394317,1756185061653,-1000.0,0.00014793,2]
[381394318,1756185061662,-1000.0,0.00014793,2]
[381394319,1756185061671,-1000.0,0.00014793,2]
[381394320,1756185061681,-1000.0,0.00014793,2]
[381394321,1756185061691,-300.0,0.00014793,2]
[381394322,1756185061705,-300.0,0.00014793,2]
[381394323,1756185061715,-300.0,0.00014793,2]
[381394324,1756185061725,-300.0,0.00014793,2]
[381394325,1756185061735,-300.0,0.00014793,2]
[381394326,1756185061746,-300.0,0.00014793,2]
[381394327,1756185061756,-1000.0,0.00014793,2]
[381394328,1756185061765,-1000.0,0.00014793,2]
[381394329,1756185061776,-1500.0,0.00014795,2]